bitfinex/quotes_ETHUSD_20241217
["timestamp","ask_amount","ask_price","bid_price","bid_amount"]
[1734461022879,2.10112709,3952.0,3951.9,0.00250309]
[1734461023051,4.18733937,3952.0,3951.9,0.00250309]
[1734461023444,4.19579191,3952.0,3951.9,0.00250309]
[1734461024172,3.83281271,3952.0,3951.9,0.00250309]
[1734461024346,6.44802203,3952.0,3951.9,0.00250309]
[1734461024550,5.12864542,3952.0,3951.9,0.00250309]
[1734461025864,6.01439987,3952.0,3951.9,0.00250309]
[1734461026964,7.74608549,3952.0,3951.9,0.00250309]
[1734461027347,6.01434028,3952.0,3951.9,0.00250309]
[1734461028686,5.12892668,3952.0,3951.9,0.00250309]
[1734461028867,7.7460259,3952.0,3951.9,0.00250309]
[1734461029044,6.01434028,3952.0,3951.9,0.00250309]
[1734461029441,5.12892668,3952.0,3951.9,0.00250309]
[1734461029682,3.39724106,3952.0,3951.9,0.00250309]
[1734461030295,5.12892668,3952.0,3951.9,0.00250309]
[1734461030590,2.10140835,3952.0,3951.9,0.00250309]
[1734461030766,3.39119893,3952.0,3951.9,0.00250309]
[1734461031953,2.09279058,3952.0,3951.9,0.00250309]
[1734461032289,1.29782891,3952.0,3951.9,0.00250309]
[1734461032865,1.56944698,3952.0,3951.9,0.00250309]
[1734461033071,2.86727589,3952.0,3951.9,0.00250309]
[1734461033904,1.29782891,3952.0,3951.9,0.00250309]
[1734461034275,2.86729783,3952.0,3951.9,0.00250309]
[1734461034482,2.34414558,3952.0,3951.9,0.00250309]
[1734461034656,1.29782891,3952.0,3951.9,0.00250309]
[1734461035389,2.34414558,3952.0,3951.9,0.00250309]
[1734461035792,2.34413724,3952.0,3951.9,0.00250309]
[1734461036816,2.16291573,3953.1,3952.0,0.3197]
[1734461036817,1.04630833,3952.2,3952.0,0.3197]
[1734461037118,1.04630833,3952.5,3952.0,0.3197]
[1734461037276,1.56946892,3952.6,3952.0,0.3197]
[1734461037277,2.34422668,3952.4,3952.0,0.3197]
[1734461037483,1.04630833,3952.4,3952.0,0.3197]
[1734461037886,2.3442272,3952.3,3952.0,0.3197]
[1734461038092,1.04630833,3952.3,3952.0,0.3197]
[1734461038278,1.04630833,3952.4,3952.0,0.3197]
[1734461039074,1.04630833,3952.3,3951.9,0.00250309]
[1734461039275,2.34412385,3952.2,3951.9,0.00250309]
[1734461039529,2.34412385,3952.1,3951.9,0.00250309]
[1734461039728,1.04630833,3952.1,3951.9,0.00250309]
[1734461041226,1.04630833,3952.2,3951.9,0.00250309]
[1734461041372,1.04630833,3952.1,3951.9,0.00250309]
[1734461041716,1.29769545,3952.0,3951.9,0.00250309]
[1734461041874,2.34400378,3952.0,3951.9,0.00250309]
[1734461042081,1.29769545,3952.0,3951.9,0.00250309]
[1734461042277,0.782,3952.2,3951.9,0.00250309]
[1734461042278,1.04630833,3952.2,3951.9,0.00250309]
[1734461043297,1.04630833,3952.0,3951.9,0.00250309]
[1734461043811,2.34404393,3952.1,3951.9,0.00250309]
[1734461044107,2.34404393,3952.0,3951.9,0.00250309]
[1734461044300,1.2977356,3952.0,3951.9,0.00250309]
[1734461044496,1.29787637,3952.0,3951.9,0.00250309]
[1734461044734,1.04630833,3952.1,3951.9,0.00250309]
[1734461045117,3.64107916,3952.1,3951.9,0.00250309]
[1734461045320,4.20139879,3952.0,3951.9,0.00250309]
[1734461045558,3.83915249,3952.0,3951.9,0.00250309]
[1734461045695,2.10860821,3952.0,3951.9,0.00250309]
[1734461045896,5.27463516,3952.0,3951.9,0.00250309]
[1734461046101,5.87946888,3952.0,3951.9,0.00250309]
[1734461046312,4.99398621,3952.0,3951.9,0.00250309]
[1734461046598,4.99398621,3952.0,3950.5,0.3197]
[1734461046599,0.8107,3951.8,3950.5,0.3197]
[1734461046813,1.04602647,3951.1,3950.5,0.3197]
[1734461048435,1.04602647,3951.1,3949.1,0.12951677]
[1734461048436,1.04602647,3950.7,3950.1,0.3197]
[1734461048641,1.29672637,3950.6,3950.1,0.3197]
[1734461048938,1.04602647,3950.7,3950.1,0.3197]
[1734461049138,1.29634719,3950.6,3950.1,0.3197]
[1734461049297,1.04602647,3950.7,3950.1,0.3197]
[1734461049714,1.04602647,3950.7,3948.9,0.65012748]
[1734461049715,0.8107,3950.5,3949.7,0.3197]
[1734461049950,1.85672647,3950.5,3949.7,0.3197]
[1734461050160,1.29617998,3950.4,3949.7,0.3197]
[1734461050448,1.04602647,3950.4,3949.7,0.3197]
[1734461051002,1.29573002,3950.3,3949.7,0.3197]
[1734461051267,1.04602647,3950.4,3949.7,0.3197]
[1734461051835,1.29532263,3950.3,3949.7,0.3197]
[1734461052154,1.04602647,3950.4,3949.7,0.3197]
[1734461052347,1.63793407,3950.3,3949.7,0.3197]
[1734461052576,0.34257662,3950.3,3949.7,0.3197]
[1734461052861,1.38860309,3950.3,3949.0,0.3197]
[1734461053003,2.34097046,3950.2,3949.0,0.3197]
[1734461053349,1.04602647,3950.0,3949.0,0.3197]
[1734461053532,1.04602647,3950.1,3949.0,0.3197]
[1734461054042,1.29435561,3950.0,3949.0,0.3197]
[1734461054239,1.34179075,3950.1,3949.0,0.3197]
[1734461054601,0.8107,3949.9,3949.0,0.3197]
[1734461055901,1.04602647,3950.0,3949.0,0.3197]
[1734461056104,1.04602647,3950.3,3949.0,0.3197]
[1734461056830,1.29546232,3950.2,3949.0,0.3197]
[1734461057030,1.04602647,3950.3,3949.0,0.3197]
[1734461057235,1.29550251,3950.2,3949.0,0.3197]
[1734461057404,2.3797397,3950.5,3949.0,0.3197]
[1734461057405,1.04602647,3950.5,3949.1,0.3197]
[1734461057742,1.29520287,3950.4,3949.1,0.3197]
[1734461057959,0.3910269,3950.4,3949.1,0.65167]
[1734461058133,0.3910269,3950.4,3949.1,0.3197]
[1734461058728,1.59602647,3950.5,3949.1,0.3197]
[1734461059211,1.59602647,3950.3,3949.1,0.3197]
[1734461059543,1.59602647,3950.1,3949.1,0.3197]
[1734461059759,0.8107,3950.0,3949.1,0.3197]
[1734461059963,3.15143781,3950.0,3949.1,0.3197]
[1734461060105,0.52704775,3949.9,3949.1,0.3197]
[1734461060558,0.8107,3950.0,3949.1,0.3197]
[1734461062106,1.85672647,3950.0,3948.8,0.3197]
[1734461062306,0.8107,3950.0,3948.8,0.3197]
[1734461063656,0.55,3949.9,3948.8,0.3197]
[1734461063855,0.29567265,3949.8,3948.8,0.3197]
[1734461065712,0.55,3949.7,3948.8,0.3197]
[1734461066135,0.29567265,3949.8,3948.8,0.3197]
[1734461066450,1.04602647,3950.3,3948.8,0.67232729]
[1734461066745,1.04602647,3950.3,3947.8,0.12495372]
[1734461066746,0.8107,3950.7,3949.1,0.3197]
[1734461066950,1.04602647,3950.9,3949.1,0.3197]
[1734461067151,1.85672647,3951.0,3949.1,0.3197]
[1734461067512,1.17019854,3950.8,3949.1,0.3197]
[1734461067736,0.8107,3950.6,3949.1,0.3197]
[1734461068259,0.55,3950.5,3949.1,0.3197]
[1734461069416,2.88860775,3950.5,3949.1,0.3197]
[1734461069617,0.55,3950.3,3949.1,0.3197]
[1734461069872,1.29258128,3950.4,3949.1,0.3197]
[1734461069873,0.55,3950.1,3949.1,0.3197]
[1734461070148,0.55,3949.9,3949.1,0.3197]
[1734461070321,0.55,3949.9,3948.1,0.3197]
[1734461071112,0.55,3949.9,3948.2,0.3197]
[1734461071525,0.55,3949.9,3948.3,3.3197]
[1734461071713,0.55,3949.9,3948.3,3.0]
[1734461071942,0.55,3949.9,3948.5,0.3197]
[1734461072324,0.24067265,3950.0,3948.5,0.3197]
[1734461073173,0.55,3950.3,3948.5,0.3197]
[1734461073918,1.59602647,3950.3,3948.5,0.3197]
[1734461074113,0.55,3950.3,3948.5,0.3197]
[1734461074330,4.25602647,3950.3,3948.5,0.3197]
[1734461074528,0.55,3950.0,3948.5,0.3197]
[1734461074734,0.36433702,3949.9,3948.5,0.3197]
[1734461075421,0.55,3949.6,3948.5,0.3197]
[1734461076747,3.21,3949.6,3948.5,0.3197]
[1734461077054,0.55,3949.4,3948.5,0.3197]
[1734461078661,0.55,3949.2,3947.2,0.3197]
[1734461078893,0.55,3949.0,3947.2,0.3197]
[1734461079790,0.18555,3949.1,3947.5,0.3197]
[1734461080866,0.7555,3949.3,3947.5,0.3197]
[1734461080867,0.55,3949.2,3947.5,0.3197]
[1734461086603,1.84204966,3949.2,3947.5,0.3197]
[1734461086791,0.55,3949.2,3947.5,0.3197]
[1734461087904,2.88850002,3949.2,3947.5,0.3197]
[1734461088216,1.29247355,3949.1,3947.5,0.3197]
[1734461088371,0.3644,3949.0,3947.5,0.3197]
[1734461089463,1.41042647,3949.0,3947.5,0.3197]
[1734461089880,0.3644,3949.0,3947.5,0.3197]
[1734461090567,2.70479154,3949.0,3947.5,0.3197]
[1734461090760,1.29436507,3948.9,3947.5,0.3197]
[1734461091094,0.48238312,3948.9,3947.7,0.3197]
[1734461091521,1.52840959,3948.9,3947.7,0.3197]
[1734461091899,1.29497093,3948.8,3947.7,0.3197]
[1734461092407,2.3409974,3948.8,3947.7,0.3197]
[1734461092562,1.29497093,3948.7,3947.7,0.3197]
[1734461092916,1.29497093,3948.7,3947.8,0.3197]
[1734461093366,1.04602647,3948.8,3947.8,0.3197]
[1734461094009,1.52840959,3948.9,3947.8,0.3197]
[1734461094296,2.34194021,3948.8,3947.8,0.3197]
[1734461094495,1.29591374,3948.7,3947.8,0.3197]
[1734461095270,1.04602647,3949.0,3948.0,0.3197]
[1734461095476,1.5690397,3949.2,3948.2,0.3197]
[1734461095477,1.04602647,3949.2,3948.2,0.3197]
[1734461095671,1.04602647,3949.2,3948.3,0.3197]
[1734461095876,1.04602647,3949.6,3948.4,0.3197]
[1734461096382,1.29698229,3949.5,3948.4,0.3197]
[1734461096588,1.04602647,3949.6,3948.4,0.3197]
[1734461096987,1.04602647,3949.6,3948.5,0.39698001]
[1734461097330,1.04602647,3949.8,3948.6,0.3197]
[1734461097818,2.34359363,3949.8,3948.6,0.3197]
[1734461098019,1.29756716,3949.7,3948.6,0.3197]
[1734461098230,1.04602647,3949.8,3948.6,0.3197]
[1734461099119,1.04602647,3949.8,3948.7,0.33197]
[1734461099288,1.04602647,3949.8,3948.8,0.3197]
[1734461099474,2.86663121,3950.0,3948.8,0.3197]
[1734461099475,1.04602647,3949.9,3948.8,0.3197]
[1734461100580,2.34385166,3949.9,3948.8,0.3197]
[1734461100832,1.5690397,3950.0,3948.8,0.3197]
[1734461100833,2.34385166,3949.8,3948.8,0.3197]
[1734461100996,1.29782519,3949.7,3948.8,0.3197]
[1734461101320,1.04602647,3949.8,3948.9,0.3197]
[1734461101724,1.04602647,3950.1,3949.0,0.02532013]
[1734461101924,1.04602647,3950.1,3949.1,0.3197]
[1734461102236,1.04602647,3950.3,3949.1,0.3197]
[1734461102537,1.5690397,3950.5,3949.1,0.3197]
[1734461102538,1.04602647,3950.5,3949.1,0.3197]
[1734461102860,1.04602647,3950.5,3949.4,0.3197]
[1734461102984,1.04602647,3950.6,3949.6,0.3197]
[1734461103290,1.04602647,3950.7,3949.6,0.3197]
[1734461103472,1.04602647,3950.8,3949.6,0.3197]
[1734461103678,2.3440096,3950.7,3949.6,0.3197]
[1734461103897,1.29798313,3950.6,3949.6,0.3197]
[1734461104134,1.04602647,3950.7,3949.6,0.3197]
[1734461104299,1.04602647,3950.7,3949.8,0.3197]
[1734461105434,1.29806767,3950.7,3949.8,0.3197]
[1734461105623,1.04602647,3950.8,3949.8,0.3197]
[1734461105782,1.29732443,3950.7,3949.8,0.3197]
[1734461105980,1.04602647,3950.8,3949.8,0.3197]
[1734461106182,2.34345795,3950.7,3949.8,0.3197]
[1734461106430,2.34345795,3950.6,3949.8,0.3197]
[1734461106770,2.34345795,3950.5,3949.8,0.4197]
[1734461106949,1.29743148,3950.4,3949.8,0.4197]
[1734461107275,1.04602647,3950.6,3949.8,0.4197]
[1734461107590,1.04602647,3949.9,3949.8,0.1]
[1734461107871,1.5690397,3949.9,3949.8,0.1]
[1734461108077,2.86604614,3949.9,3949.8,0.1]
[1734461108230,1.29700644,3949.9,3949.8,0.1]
[1734461108426,1.84700644,3949.9,3949.8,0.1]
[1734461108653,3.5416767,3949.9,3949.8,0.1]
[1734461108828,6.15595021,3949.9,3949.8,0.1]
[1734461109029,0.55,3949.8,3948.8,0.3197]
[1734461109266,1.04552402,3949.4,3948.8,0.3197]
[1734461109574,1.29700644,3949.3,3948.8,0.3197]
[1734461109732,0.39108165,3949.2,3948.8,0.3197]
[1734461110230,1.04552402,3949.4,3948.8,0.3197]
[1734461110444,1.29619223,3949.3,3948.0,3.0]
[1734461110740,1.29619223,3949.3,3947.5,0.45262729]
[1734461110741,1.29619223,3949.2,3947.6,0.3197]
[1734461110947,1.04552402,3949.2,3947.6,0.3197]
[1734461111148,1.30690503,3949.2,3947.6,0.3197]
[1734461111551,1.04552402,3949.3,3947.8,0.3197]
[1734461111734,1.04552402,3949.4,3947.8,3.0]
[1734461112068,1.04552402,3949.5,3947.9,0.3197]
[1734461112229,2.34124456,3949.4,3947.9,0.3197]
[1734461112425,1.04552402,3949.4,3947.9,0.3197]
[1734461112627,2.3412444,3949.3,3947.9,0.3197]
[1734461112960,1.30690503,3949.4,3947.9,0.3197]
[1734461113153,1.29578361,3949.3,3947.9,0.3197]
[1734461113362,2.34130763,3949.3,3947.9,0.3197]
[1734461113523,1.29578361,3949.2,3947.9,0.3197]
[1734461113747,1.04552402,3949.1,3948.1,0.3197]
[1734461113941,1.04552402,3949.2,3948.1,0.3197]
[1734461114237,1.56828603,3949.3,3948.1,0.3197]
[1734461114238,2.34130936,3949.1,3948.1,0.3197]
[1734461114567,1.29583041,3949.0,3948.1,0.3197]
[1734461114732,1.04552402,3949.1,3948.1,0.3197]
[1734461114929,0.36627911,3949.1,3948.1,0.3197]
[1734461115440,2.70773886,3949.1,3948.1,0.3197]
[1734461115645,0.36627911,3949.1,3948.1,0.3197]
[1734461116152,2.70773048,3949.1,3948.1,0.3197]
[1734461116360,1.41180313,3949.1,3948.1,0.3197]
[1734461116562,1.59391605,3949.0,3948.1,0.3197]
[1734461116735,0.29800892,3949.0,3948.1,0.3197]
[1734461116932,0.7627,3948.8,3948.1,0.3197]
[1734461117179,3.10404002,3948.8,3948.1,0.3197]
[1734461117487,1.295816,3948.7,3948.1,0.3197]
[1734461117771,1.295816,3948.7,3947.5,0.1]
[1734461117772,1.60622,3948.6,3947.5,0.1]
[1734461117996,1.35592802,3948.6,3947.6,0.3197]
[1734461118147,1.29576721,3948.5,3947.6,0.3197]
[1734461118347,2.3413763,3948.4,3947.5,0.1]
[1734461118549,3.62683831,3948.3,3948.1,0.1]
[1734461118759,0.62678864,3948.2,3948.1,0.1]
[1734461118947,4.01368896,3948.2,3948.1,0.1]
[1734461119340,6.73315791,3948.2,3948.1,0.1]
[1734461119538,10.10772745,3948.2,3948.1,0.1]
[1734461119758,7.49585791,3948.2,3948.1,0.1]
[1734461119972,10.10671219,3948.2,3948.1,0.1]
[1734461120352,10.49585791,3948.2,3948.1,0.1]
[1734461122475,13.10373013,3948.2,3948.1,0.1]
[1734461124072,0.55,3947.9,3947.5,0.1]
[1734461124273,0.55,3947.6,3947.5,0.1]
[1734461124674,1.84585228,3947.6,3947.5,0.1]
[1734461125178,0.55,3947.6,3947.5,0.1]
[1734461125671,2.35570198,3947.6,3947.5,0.1]
[1734461125873,6.18202931,3947.6,3947.5,0.1]
[1734461126040,6.70511828,3947.6,3947.5,0.1]
[1734461126240,11.42928633,3947.6,3947.5,0.1]
[1734461126956,13.5152903,3947.6,3947.5,0.1]
[1734461127167,11.42928633,3947.6,3947.5,0.1]
[1734461127341,12.7525903,3947.6,3946.1,0.3197]
[1734461127684,1.04204218,3946.9,3946.1,0.3197]
[1734461127987,0.55,3946.8,3946.1,0.3197]
[1734461128140,0.55,3946.9,3946.1,0.3197]
[1734461128794,1.04204218,3947.4,3946.1,0.3197]
[1734461128973,0.46911094,3947.4,3946.1,0.3197]
[1734461129360,3.1598032,3947.3,3946.1,0.3197]
[1734461129562,2.53347,3947.2,3946.1,0.3197]
[1734461130160,0.55,3947.1,3946.1,0.3197]
[1734461130359,0.55,3947.0,3946.1,0.3197]
[1734461130585,0.7627,3946.7,3946.1,0.3197]
[1734461132687,0.55,3946.6,3945.7,0.3197]
[1734461133033,0.55,3946.4,3945.7,0.3197]
[1734461133521,0.55,3946.4,3945.4,0.5197]
[1734461134677,0.55,3946.2,3945.4,0.5197]
[1734461134873,0.388026,3946.1,3945.4,0.5197]
[1734461135310,0.55,3946.2,3945.4,0.5197]
[1734461135647,0.55,3946.6,3945.5,0.3197]
[1734461136409,2.3971032,3946.5,3945.5,0.3197]
[1734461136789,5.3971032,3946.5,3945.5,0.3197]
[1734461137747,0.55,3946.6,3945.5,0.3197]
[1734461138030,0.14697208,3946.5,3945.5,0.3197]
[1734461138380,0.55,3946.4,3945.5,0.3197]
[1734461138587,0.8219,3946.3,3945.5,0.3197]
[1734461138817,0.55,3946.2,3945.5,0.3197]
[1734461139414,0.8219,3946.3,3945.5,0.3197]
[1734461139727,0.63659753,3946.2,3945.5,0.3197]
[1734461141402,5.3971032,3946.1,3945.4,0.2]
[1734461142849,7.9312532,3946.1,3945.4,0.2]
[1734461143330,0.8219,3945.9,3945.4,0.2]
[1734461143486,0.87532432,3945.8,3945.4,0.2]
[1734461143689,0.87532432,3945.8,3944.9,0.4197]
[1734461144712,0.55,3945.7,3944.9,0.4197]
[1734461145032,0.55,3945.7,3944.9,0.1]
[1734461145033,5.4815632,3945.7,3944.9,0.1]
[1734461145239,2.9471032,3945.7,3944.9,0.1]
[1734461145391,2.99893275,3945.6,3944.9,0.1]
[1734461146798,0.46443275,3945.6,3944.9,0.1]
[1734461147212,2.99891275,3945.6,3944.9,0.1]
[1734461148298,0.8031,3945.5,3944.9,0.1]
[1734461148997,2.99891275,3945.6,3944.9,0.1]
[1734461148998,2.53485,3945.0,3944.9,0.1]
[1734461149219,4.9321532,3944.7,3944.4,0.1]
[1734461150313,2.53517,3944.5,3944.4,0.1]
[1734461150506,9.54827,3944.5,3944.4,0.1]
[1734461150705,9.54827,3944.5,3944.2,0.1]
[1734461150706,6.0853,3944.3,3944.2,0.1]
[1734461150998,11.95427536,3944.3,3944.2,0.1]
[1734461151511,3.55,3943.9,3941.5,0.3197]
[1734461151708,3.55,3943.9,3941.6,0.3197]
[1734461151709,4.94177536,3943.4,3941.6,0.3197]
[1734461151914,4.94177536,3943.4,3941.4,2.67276786]
[1734461151915,4.94177536,3943.4,3941.8,0.3197]
[1734461152136,0.57448754,3943.3,3941.8,0.3197]
[1734461152569,2.40587536,3943.8,3941.8,0.3197]
[1734461152737,2.40587536,3943.8,3941.0,0.12681627]
[1734461152738,3.0,3944.4,3942.3,0.3197]
[1734461153087,6.60041268,3944.5,3942.5,0.3197]
[1734461153257,5.40587536,3944.5,3942.5,0.3197]
[1734461153922,7.94105536,3944.5,3942.5,0.3197]
[1734461154358,8.06530137,3944.5,3942.5,0.3197]
[1734461155061,2.40587536,3944.1,3942.5,0.3197]
[1734461155233,2.9803099,3944.1,3942.6,0.33197]
[1734461155564,2.9803099,3944.1,3942.7,0.3197]
[1734461156272,3.8031,3944.4,3942.7,0.3197]
[1734461157761,6.33835,3944.4,3942.7,0.3197]
[1734461157967,2.40587536,3944.1,3942.7,0.3197]
[1734461160367,0.8031,3944.4,3942.7,0.3197]
[1734461160368,3.8031,3944.4,3942.7,0.3197]
[1734461160877,2.40587536,3944.1,3942.7,0.3197]
[1734461161038,0.54058754,3944.0,3942.7,0.3197]
[1734461161240,3.54058754,3944.0,3942.7,0.3197]
[1734461161424,0.54058754,3944.0,3942.7,0.3197]
[1734461161627,3.8031,3944.4,3942.7,0.3197]
[1734461162245,0.12424601,3944.5,3942.7,0.3197]
[1734461162493,1.04204218,3945.0,3943.1,0.3197]
[1734461162788,0.12751264,3945.1,3943.1,0.34505854]
[1734461162941,0.12751264,3945.1,3943.4,2.40587536]
[1734461163147,0.48505566,3945.1,3943.6,0.3197]
[1734461164504,3.0,3945.0,3943.6,0.3197]
[1734461164802,1.52709784,3945.1,3943.6,0.3197]
[1734461165476,4.2875944,3945.0,3943.6,0.3197]
[1734461165648,1.52709784,3945.1,3943.6,0.3197]
[1734461165986,5.13722978,3945.0,3943.6,0.3197]
[1734461166201,0.84960365,3945.0,3943.6,0.3197]
[1734461167072,1.04204218,3945.1,3943.8,2.40587536]
[1734461167278,1.04204218,3945.6,3943.9,0.3197]
[1734461167706,1.04204218,3945.6,3943.4,0.02535273]
[1734461167707,1.04204218,3945.9,3944.4,0.3197]
[1734461167871,3.29406,3946.4,3944.4,0.3197]
[1734461167872,1.04204218,3946.0,3944.4,0.3197]
[1734461168316,1.04204218,3946.1,3944.4,0.3197]
[1734461168525,2.76385039,3946.0,3944.5,0.3197]
[1734461168737,0.1283717,3945.7,3944.5,0.3197]
[1734461169033,1.04204218,3946.3,3944.5,0.3197]
[1734461169526,1.28993281,3946.2,3944.5,0.3197]
[1734461169726,2.33197499,3946.2,3944.5,0.3197]
[1734461169882,0.64290483,3946.1,3944.7,0.3197]
[1734461170627,1.68494701,3946.1,3944.7,0.3197]
[1734461170854,2.40587536,3945.8,3944.7,0.3197]
[1734461170986,2.53447,3945.6,3944.7,0.3197]
[1734461171187,2.40587536,3945.4,3944.7,0.3197]
[1734461171385,0.72721836,3945.3,3944.7,0.3197]
[1734461171627,1.04204218,3945.5,3944.7,0.3197]
[1734461171828,1.29001143,3945.4,3944.7,0.3197]
[1734461172001,1.04204218,3945.4,3944.7,0.3197]
[1734461172196,1.29011955,3945.3,3944.7,0.3197]
[1734461172529,1.29011955,3945.3,3943.2,2.40587536]
[1734461172530,2.40587536,3945.0,3943.2,0.3197]
[1734461172743,1.04204218,3944.8,3943.2,0.3197]
[1734461172890,2.3321909,3944.7,3943.2,0.3197]
[1734461173216,1.04204218,3944.7,3943.2,0.3197]
[1734461173735,1.29025959,3944.6,3943.2,0.3197]
[1734461173947,0.38953651,3944.6,3943.2,0.3197]
[1734461174290,1.43157869,3944.6,3943.2,0.3197]
[1734461174488,0.38953651,3944.6,3943.2,0.3197]
[1734461174691,2.7217543,3944.6,3943.2,0.3197]
[1734461174936,1.29015216,3944.5,3943.2,0.3197]
[1734461175231,1.04204218,3944.5,3943.2,0.3197]
[1734461175431,1.29058981,3944.4,3943.3,0.3197]
[1734461175616,1.34150638,3944.5,3943.3,0.3197]
[1734461175953,1.29056892,3944.4,3943.3,0.3197]
[1734461176132,1.34150638,3944.5,3943.3,0.3197]
[1734461176292,2.33251453,3944.4,3943.3,0.3197]
[1734461176494,1.34150638,3944.5,3943.3,0.3197]
[1734461176837,1.04204218,3944.9,3943.6,2.40587536]
[1734461177005,0.23321617,3945.2,3943.8,0.3197]
[1734461177006,1.04204218,3945.2,3943.8,0.3197]
[1734461177402,1.04204218,3945.3,3943.8,0.3197]
[1734461177608,1.29086701,3945.2,3943.8,0.3197]
[1734461177808,1.29077709,3945.1,3943.8,0.3197]
[1734461178007,1.04204218,3945.2,3944.0,0.3197]
[1734461178203,1.2908422,3945.1,3944.0,0.3197]
[1734461178405,1.04204218,3945.2,3944.0,0.3197]
[1734461178607,2.33307799,3945.1,3944.0,0.3197]
[1734461178829,1.04204218,3945.1,3944.0,0.3197]
[1734461179043,1.04204218,3945.1,3944.1,0.3197]
[1734461179541,1.04204218,3945.2,3944.1,0.3197]
[1734461179745,2.33327654,3945.1,3944.1,0.3197]
[1734461179946,1.04204218,3945.5,3944.3,0.3197]
[1734461180145,1.04204218,3945.6,3944.3,0.3197]
[1734461180332,1.04204218,3945.7,3944.3,0.3197]
[1734461180805,1.29155644,3945.6,3944.3,0.3197]
[1734461181004,1.04204218,3945.7,3944.3,0.3197]
[1734461181260,1.29156504,3945.6,3944.5,0.3197]
[1734461181460,1.04204218,3945.7,3944.5,0.3197]
[1734461181659,1.29165338,3945.6,3944.5,0.3197]
[1734461181968,1.29154877,3945.5,3944.5,0.3197]
[1734461182137,2.33359095,3945.5,3944.5,0.3197]
[1734461182390,2.72326273,3945.4,3944.5,0.3197]
[1734461182697,1.04204218,3944.8,3943.0,0.3197]
[1734461182868,1.04204218,3944.6,3943.0,0.3197]
[1734461183066,2.33359731,3944.5,3943.0,0.3197]
[1734461183380,1.29159428,3944.4,3943.0,0.3197]
[1734461183590,1.04204218,3944.5,3943.1,0.27255754]
[1734461183796,1.29160342,3944.4,3943.1,0.27255754]
[1734461184101,1.04204218,3944.5,3943.1,0.27255754]
[1734461184266,1.29166734,3944.4,3943.1,0.27255754]
[1734461184453,1.04204218,3944.4,3943.1,0.27255754]
[1734461184660,1.04204218,3944.5,3943.3,0.3197]
[1734461184905,1.29182987,3944.4,3943.3,0.3197]
[1734461185053,1.04204218,3944.4,3943.3,0.3197]
[1734461186516,1.04204218,3944.5,3943.4,0.3197]
[1734461186817,1.29284085,3944.5,3943.4,0.3197]
[1734461187108,0.38979463,3944.5,3943.4,0.3197]
[1734461187494,2.33491867,3944.4,3943.4,0.3197]
[1734461187868,2.33491867,3944.3,3943.4,0.3197]
[1734461188181,1.29270232,3944.2,3943.4,0.3197]
[1734461188401,1.04204218,3944.3,3943.4,0.3197]
[1734461188621,0.29949001,3944.2,3943.4,0.3197]
[1734461189279,1.34153219,3944.2,3943.4,0.3197]
[1734461190099,0.29949001,3944.2,3943.4,0.3197]
[1734461190293,1.04204218,3944.3,3943.4,0.3197]
[1734461191334,2.33516252,3944.2,3943.4,0.3197]
[1734461192326,2.33516252,3944.2,3943.5,2.72557536]
[1734461192489,1.04204218,3944.7,3944.0,0.3197]
[1734461192687,1.56306328,3944.9,3944.0,0.3197]
[1734461192688,1.04204218,3944.9,3944.1,0.3197]
[1734461192891,1.56306328,3945.1,3944.1,0.3197]
[1734461192892,1.04204218,3945.1,3944.1,0.3197]
[1734461193093,1.04204218,3945.2,3944.1,0.3197]
[1734461193330,2.33574093,3945.2,3944.1,0.3197]
[1734461193502,1.04204218,3945.3,3944.2,0.3197]
[1734461194102,2.33586097,3945.2,3944.2,0.3197]
[1734461194523,1.56306328,3945.4,3944.4,0.3197]
[1734461194524,1.04204218,3945.4,3944.4,0.3197]
[1734461194742,1.04204218,3945.4,3944.1,0.29981329]
[1734461194743,1.04204218,3945.4,3944.8,0.3197]
[1734461194934,3.81117821,3946.0,3944.8,0.3197]
[1734461194935,1.04204218,3945.7,3944.8,0.3197]
[1734461195097,1.04204218,3945.7,3944.8,0.59225754]
[1734461195296,1.04204218,3945.6,3944.8,0.59225754]
[1734461196146,1.04204218,3945.6,3944.8,0.3197]
[1734461196349,2.33582839,3945.5,3944.8,0.3197]
[1734461196652,2.33582839,3945.5,3943.7,0.3197]
[1734461196653,1.04204218,3945.0,3943.7,0.3197]
[1734461196809,1.04204218,3944.8,3943.7,0.3197]
[1734461197006,1.29378621,3944.9,3943.7,0.3197]
[1734461197007,1.04204218,3944.5,3943.7,0.3197]
[1734461197203,1.04204218,3944.4,3943.7,0.3197]
[1734461197510,1.04204218,3944.2,3943.7,0.3197]
[1734461198015,2.33511106,3944.1,3943.7,0.3197]
[1734461198232,1.29306888,3944.0,3943.7,0.3197]
[1734461198404,1.29345299,3943.9,3943.4,0.3197]
[1734461198769,1.43185961,3944.0,3943.4,0.3197]
[1734461199054,1.29345613,3943.9,3943.4,0.3197]
[1734461199236,1.43185961,3944.0,3943.4,0.3197]
[1734461199452,1.29350646,3943.9,3943.4,0.3197]
[1734461199648,1.43185961,3944.0,3943.4,0.3197]
[1734461199810,1.29363817,3943.9,3943.4,0.3197]
[1734461200006,1.43185961,3944.0,3943.4,0.3197]
[1734461200206,1.29359077,3943.9,3943.4,0.3197]
[1734461200444,1.43185961,3944.0,3943.4,0.3197]
[1734461200445,1.04204218,3943.7,3943.4,0.3197]
[1734461200644,3.12921078,3943.8,3943.4,0.3197]
[1734461200645,2.33564464,3943.6,3943.4,0.3197]
[1734461200808,2.33564464,3943.5,3942.3,0.3197]
[1734461201015,1.04204218,3943.5,3942.3,0.3197]
[1734461201239,1.04204218,3943.6,3942.3,0.3197]
[1734461201530,1.04204218,3943.6,3942.5,0.3197]
[1734461201933,2.33557394,3943.6,3942.5,0.3197]
[1734461202129,1.29360491,3943.5,3942.5,0.3197]
[1734461202346,1.04204218,3943.6,3942.5,0.3197]
[1734461202956,2.33571296,3943.6,3942.5,0.3197]
[1734461203161,1.29367078,3943.5,3942.6,0.36220048]
[1734461203359,1.04204218,3943.6,3942.7,0.3197]
[1734461203565,2.33599509,3943.5,3942.7,0.3197]
[1734461203720,1.04204218,3943.6,3942.7,0.3197]